{"text_format":"1","workbook":"xlsx","n_sheets":3,"sheets":["Instrucciones","Reformulación Presupuesto Bb1","Resumen Presupuesto"],"not_rendered":{"charts":0,"images":5,"macros":1,"external_links":0,"defined_names":8,"comments":2,"pivot_tables":0},"unopened":[],"bounds":{"document_bytes":16777216,"sheet_cells":100000,"rows_first":2000,"rows_last":500,"rows_between":2000,"halvings":0,"cell_chars":16384,"cell_head_chars":4096},"cells_cut":0,"cells_raw":0,"read":"whole","date_system":"1900"}

{"sheet":"Instrucciones","index":0,"n_rows":26,"n_cols":10,"rows_kept":26,"cut":false,"hidden":false,"merged":[[24,1,24,16],[25,1,25,16],[1,9,1,11],[2,2,2,17],[5,2,5,17],[3,9,3,10]]}
[]
[null,null,null,null,null,null,null,null,null,"Doc_básico3_presup_reformulado_Bb1 INSTRUCCIONES"]
[null,null,"SUBVENCIONES DEL AYUNTAMIENTO DE BARCELONA POR EL FORTALECIMIENTO DE LA ECONOMÍA SOCIAL Y SOLIDARIA Y POR LA INTERCOOPERACIÓN EN LA ESTRATEGIA #ESSBCN2030 - FORTALEZCAMOS LA ESS 2023"]
[null,null,null,null,null,null,null,null,null,"FORTALECEMOS LA ESS 2023"]
[]
[null,null,"Aspectos relevantes relacionados con la reformulación"]
[]
[]
[]
[]
[null,"1. Rellenar la pestaña \"Reformulación Presupuesto\" con los datos económicos del proyecto:"]
[null,"1.1  Rellenar los cuadros DATOS BÁSICOS-PREVISIÓN DE GASTOS DEL PROYECTO SUBVENCIONABLE INICIAL, con los datos económicos de la propuesta inicial con subvención otorgada."]
[null,"1.2  Rellenar r los cuadros DATOS BÁSICOS-PREVISIÓN DE GASTOS DEL PROYECTO REFORMULADO, con los datos económicos de la propuesta de reformulación."]
[null,"2. Revisar y llenar la pestaña \"Resumen Presupuesto\" con los datos económicos del proyecto:"]
[null,"3. Imprimir las hojas de las 2 pestañas (Reformulación presupuesto y Resumen Presupuesto). En formato pdf."]
[]
[]
[]
[]
[null,"Pulsa el icono para generar un documento PDF del libro"]
[]
[]
[]
[]
[null,"4. Si la solicitud se presentó por vía telemática, es necesario que registre la documentación, telemáticamente, como trámite específico, dentro de la convocatoria específica como anexión de documentos adicionales y utilice el número de trámite que el sistema de registro le dio en el momento de la presentación de la solicitud de la subvención."]
[null,"5. En caso de que registre la documentación telemáticamente, como instancia genérica, mediante certificado digital, le recomendamos que avise a la dirección de correo electrónico subvencions_ec_solidaria@bcn.cat,para poder realizar un seguimiento, así como también en los casos que presente la documentación a través de una Oficina de Atención Ciudadana del Ayuntamiento, si no ha podido obtener el certificado digital (los requisitos para obtenerlo los encontrará en la Oficina Virtual de Trámites de la Sede Electrónica:https://seuelectronica.ajuntament.barcelona.cat/oficinavirtual/)."]

{"sheet":"Reformulación Presupuesto Bb1","index":1,"n_rows":141,"n_cols":10,"rows_kept":141,"cut":false,"hidden":false,"merged":[[140,0,140,3],[138,0,138,3],[139,0,139,3],[133,0,133,3],[134,0,134,3],[135,0,135,3],[136,0,136,3],[137,0,137,3],[128,0,128,3],[129,0,129,3],[130,0,130,3],[131,0,131,3],[132,0,132,3],[123,0,123,3],[124,0,124,3],[125,0,125,3],[126,0,126,3],[127,0,127,3],[122,0,122,1],[3,0,4,8],[1,1,1,8],[18,0,18,3],[10,6,10,7],[18,6,18,8],[6,2,6,5],[120,0,120,3],[121,0,121,3],[118,0,118,3],[119,0,119,3]]}
[]
[null,"Reformulación presupuesto modalidad Bb1"]
[]
["SUBVENCIONES DEL AYUNTAMIENTO DE BARCELONA POR EL FORTALECIMIENTO DE LA ECONOMÍA SOCIAL Y SOLIDARIA Y POR LA INTERCOOPERACIÓN EN LA ESTRATEGIA #ESSBCN2030 - FORTALEZCAMOS LA ESS 2023"]
[]
[]
[]
["DATOS BÁSICOS"]
["Nombre de la persona jurídica",null,{"$f":"+IF(H9>Dadesbasiques[[#This Row],[Columna1]],\"ALERTA: La quantia de la subvenció atorgada no pot superar el 80% de la despesa total del projecte a subvencionar\", \" \")","v":" "},null,null,"  "]
["NIF de la persona jurídica",null,{"$f":"+IF(H10>Dadesbasiques[[#This Row],[Columna1]],\"ALERTA: La quantia de la subvenció atorgada no pot superar el 80% de la despesa total del projecte a subvencionar\", \" \")","v":" "}]
["Nombre del proyecto subvencionable",null,{"$f":"+IF(H11>Dadesbasiques[[#This Row],[Columna1]],\"ALERTA: La quantia de la subvenció atorgada no pot superar el 80% de la despesa total del projecte a subvencionar\", \" \")","v":" "},null,null,null,"DATOS BÁSICOS PROYECTO REFORMULADO "]
["Importe total del proyecto subvencionable",null,null,null,null,null,"Importe total del proyecto REFORMULADO"]
["Importe imputable a la subvención municipal",null,null,null,null,null,"Importe imputable a la subvención OTORGADA"]
["Importe de la aportación / Cofinanciación de la organización",{"$f":"+B12-B13","v":0},null,null,null,null,"Importe de la aportación / Cofinanciación de la organización",{"$f":"H12-H13","v":0}]
["% del importe solicitado respecto al total del proyecto",{"$f":"B13/B12","v":{"$error":"#DIV/0!"}},null,null,null,null,"% del importe solicitado respecto al total del proyecto",{"$f":"H13/H12","v":{"$error":"#DIV/0!"}},{"$f":"+IF(H15>Dadesbasiques[[#This Row],[Columna1]],\"*Este porcentaje debe ser igual o menor al porcentaje subvencionado inicialmente.\",\" \")","v":{"$error":"#DIV/0!"}}]
["Data inici del projecte subvencionat (dd/mm/aaaa)",null,{"$f":"+IF(H16>Dadesbasiques[[#This Row],[Columna1]],\"ALERTA: La quantia de la subvenció atorgada no pot superar el 80% de la despesa total del projecte a subvencionar\", \" \")","v":" "}]
["Data fi del projecte subvencionat (dd/mm/aaaa)",null,{"$f":"+IF(H17>Dadesbasiques[[#This Row],[Columna1]],\"ALERTA: La quantia de la subvenció atorgada no pot superar el 80% de la despesa total del projecte a subvencionar\", \" \")","v":" "}]
[]
["PREVISIÓN DE GASTOS DEL PROYECTO SUBVENCIONABLE INICIAL",null,null,null,null,null,"PREVISIÓN DE GASTOS DEL PROYECTO REFORMULADO"]
[]
["Partidas","Importe imputable a la subvención municipal municipal","Importe de la aportación / Cofinanciación de la organización","Importe total del proyecto",null,null,"Importe imputable a la subvención municipal municipal","Importe de la aportación / Cofinanciación de la organización","Importe total del proyecto"]
["D1. Retribuciones y seguridad social (régimen general o régimen de autónomos) del personal propio vinculado/a al proyecto (máximo 40% subvención)",{"$f":"SUM(B23:B26)","v":0},{"$f":"SUM(C23:C26)","v":0},{"$f":"SUM(DespesesProjecte[[#This Row],[Importe imputable a la subvención municipal municipal]],DespesesProjecte[[#This Row],[Importe de la aportación / Cofinanciación de la organización]])","v":0},null,null,{"$f":"SUM(G23:G26)","v":0},{"$f":"SUM(H23:H26)","v":0},{"$f":"+G22+H22","v":0}]
[null,null,null,{"$f":"SUM(DespesesProjecte[[#This Row],[Importe imputable a la subvención municipal municipal]],DespesesProjecte[[#This Row],[Importe de la aportación / Cofinanciación de la organización]])","v":0},null,null,null,null,{"$f":"+G23+H23","v":0}]
[null,null,null,{"$f":"SUM(DespesesProjecte[[#This Row],[Importe imputable a la subvención municipal municipal]],DespesesProjecte[[#This Row],[Importe de la aportación / Cofinanciación de la organización]])","v":0},null,null,null,null,0]
[null,null,null,{"$f":"SUM(DespesesProjecte[[#This Row],[Importe imputable a la subvención municipal municipal]],DespesesProjecte[[#This Row],[Importe de la aportación / Cofinanciación de la organización]])","v":0},null,null,null,null,0]
[null,null,null,{"$f":"SUM(DespesesProjecte[[#This Row],[Importe imputable a la subvención municipal municipal]],DespesesProjecte[[#This Row],[Importe de la aportación / Cofinanciación de la organización]])","v":0},null,null,null,null,0]
["TOTAL DE GASTOS DEL PERSONAL\nMáximo 40% del importe imputable a la subvención municipal si se trata de personal propio asignado al proyecto subvencionado",{"$f":"B22","v":0},{"$f":"C22","v":0},{"$f":"D22","v":0},null,null,{"$f":"G22","v":0},{"$f":"H22","v":0},{"$f":"I22","v":0},{"$f":"+IF(G22>H13*0.4,\"ALERTA: Máximo 40% del importe imputable a la subvención municipal\", \" \")","v":" "}]
["D2.  Trabajos realizados por profesionales y empresas externas directamente vinculadas al proyecto",{"$f":"SUM(B29:B31)","v":0},{"$f":"SUM(C29:C31)","v":0},{"$f":"SUM(DespesesProjecte[[#This Row],[Importe imputable a la subvención municipal municipal]],DespesesProjecte[[#This Row],[Importe de la aportación / Cofinanciación de la organización]])","v":0},null,null,{"$f":"SUM(G29:G31)","v":0},{"$f":"SUM(H29:H31)","v":0},{"$f":"+G28+H28","v":0}]
[null,null,null,{"$f":"SUM(DespesesProjecte[[#This Row],[Importe imputable a la subvención municipal municipal]],DespesesProjecte[[#This Row],[Importe de la aportación / Cofinanciación de la organización]])","v":0},null,null,null,null,{"$f":"+G29+H29","v":0}]
[null,null,null,{"$f":"SUM(DespesesProjecte[[#This Row],[Importe imputable a la subvención municipal municipal]],DespesesProjecte[[#This Row],[Importe de la aportación / Cofinanciación de la organización]])","v":0},null,null,null,null,0]
[null,null,null,{"$f":"SUM(DespesesProjecte[[#This Row],[Importe imputable a la subvención municipal municipal]],DespesesProjecte[[#This Row],[Importe de la aportación / Cofinanciación de la organización]])","v":0},null,null,null,null,0]
["D3.   Alquiler de bienes muebles/ inmuebles directamente vinculados al proyecto (máximo 25% subvención en caso de inmuebles para un nuevo espacio)",{"$f":"SUM(B33:B35)","v":0},{"$f":"SUM(C33:C35)","v":0},{"$f":"SUM(DespesesProjecte[[#This Row],[Importe imputable a la subvención municipal municipal]],DespesesProjecte[[#This Row],[Importe de la aportación / Cofinanciación de la organización]])","v":0},null,null,{"$f":"SUM(G33:G35)","v":0},{"$f":"SUM(H33:H35)","v":0},0,{"$f":"+IF(G32>H13*0.25,\"ALERTA: Máximo 25% del importe imputable a la subvención municipal\", \" \")","v":" "}]
[null,null,null,{"$f":"SUM(DespesesProjecte[[#This Row],[Importe imputable a la subvención municipal municipal]],DespesesProjecte[[#This Row],[Importe de la aportación / Cofinanciación de la organización]])","v":0},null,null,null,null,0]
[null,null,null,{"$f":"SUM(DespesesProjecte[[#This Row],[Importe imputable a la subvención municipal municipal]],DespesesProjecte[[#This Row],[Importe de la aportación / Cofinanciación de la organización]])","v":0},null,null,null,null,0]
[null,null,null,{"$f":"SUM(DespesesProjecte[[#This Row],[Importe imputable a la subvención municipal municipal]],DespesesProjecte[[#This Row],[Importe de la aportación / Cofinanciación de la organización]])","v":0},null,null,null,null,0]
["D4. Adquisición de materiales y bienes consumibles íntegramente imputables al proyecto",{"$f":"SUM(B37:B39)","v":0},{"$f":"SUM(C37:C39)","v":0},{"$f":"SUM(DespesesProjecte[[#This Row],[Importe imputable a la subvención municipal municipal]],DespesesProjecte[[#This Row],[Importe de la aportación / Cofinanciación de la organización]])","v":0},null,null,{"$f":"SUM(G37:G39)","v":0},{"$f":"SUM(H37:H39)","v":0},0]
[null,null,null,{"$f":"SUM(DespesesProjecte[[#This Row],[Importe imputable a la subvención municipal municipal]],DespesesProjecte[[#This Row],[Importe de la aportación / Cofinanciación de la organización]])","v":0},null,null,null,null,0]
[null,null,null,{"$f":"SUM(DespesesProjecte[[#This Row],[Importe imputable a la subvención municipal municipal]],DespesesProjecte[[#This Row],[Importe de la aportación / Cofinanciación de la organización]])","v":0},null,null,null,null,0]
[null,null,null,{"$f":"SUM(DespesesProjecte[[#This Row],[Importe imputable a la subvención municipal municipal]],DespesesProjecte[[#This Row],[Importe de la aportación / Cofinanciación de la organización]])","v":0},null,null,null,null,0]
["D5. Transporte – mensajería imputables al proyecto",{"$f":"SUM(B41:B43)","v":0},{"$f":"SUM(C41:C43)","v":0},{"$f":"DespesesProjecte[[#This Row],[Importe imputable a la subvención municipal municipal]]+DespesesProjecte[[#This Row],[Importe de la aportación / Cofinanciación de la organización]]","v":0},null,null,{"$f":"SUM(G41:G43)","v":0},{"$f":"SUM(H41:H43)","v":0},0]
[null,null,null,{"$f":"SUM(DespesesProjecte[[#This Row],[Importe imputable a la subvención municipal municipal]],DespesesProjecte[[#This Row],[Importe de la aportación / Cofinanciación de la organización]])","v":0},null,null,null,null,0]
[null,null,null,{"$f":"SUM(DespesesProjecte[[#This Row],[Importe imputable a la subvención municipal municipal]],DespesesProjecte[[#This Row],[Importe de la aportación / Cofinanciación de la organización]])","v":0},null,null,null,null,0]
[null,null,null,{"$f":"SUM(DespesesProjecte[[#This Row],[Importe imputable a la subvención municipal municipal]],DespesesProjecte[[#This Row],[Importe de la aportación / Cofinanciación de la organización]])","v":0},null,null,null,null,0]
["D6.  Publicidad y propaganda de las actividades directamente vinculadas al proyecto ",{"$f":"SUM(B45:B47)","v":0},{"$f":"SUM(C45:C47)","v":0},{"$f":"SUM(DespesesProjecte[[#This Row],[Importe imputable a la subvención municipal municipal]],DespesesProjecte[[#This Row],[Importe de la aportación / Cofinanciación de la organización]])","v":0},null,null,{"$f":"SUM(G45:G47)","v":0},{"$f":"SUM(H45:H47)","v":0},0]
[null,null,null,{"$f":"SUM(DespesesProjecte[[#This Row],[Importe imputable a la subvención municipal municipal]],DespesesProjecte[[#This Row],[Importe de la aportación / Cofinanciación de la organización]])","v":0},null,null,null,null,0]
[null,null,null,{"$f":"SUM(DespesesProjecte[[#This Row],[Importe imputable a la subvención municipal municipal]],DespesesProjecte[[#This Row],[Importe de la aportación / Cofinanciación de la organización]])","v":0},null,null,null,null,0]
[null,null,null,{"$f":"SUM(DespesesProjecte[[#This Row],[Importe imputable a la subvención municipal municipal]],DespesesProjecte[[#This Row],[Importe de la aportación / Cofinanciación de la organización]])","v":0},null,null,null,null,0]
["D7.   Alojamiento y dietas, del personal contratante y voluntario, vinculados al proyecto",{"$f":"SUM(B49:B51)","v":0},{"$f":"SUM(C49:C51)","v":0},{"$f":"SUM(DespesesProjecte[[#This Row],[Importe imputable a la subvención municipal municipal]],DespesesProjecte[[#This Row],[Importe de la aportación / Cofinanciación de la organización]])","v":0},null,null,{"$f":"SUM(G49:G51)","v":0},{"$f":"SUM(H49:H51)","v":0},0]
[null,null,null,{"$f":"SUM(DespesesProjecte[[#This Row],[Importe imputable a la subvención municipal municipal]],DespesesProjecte[[#This Row],[Importe de la aportación / Cofinanciación de la organización]])","v":0},null,null,null,null,0]
[null,null,null,{"$f":"SUM(DespesesProjecte[[#This Row],[Importe imputable a la subvención municipal municipal]],DespesesProjecte[[#This Row],[Importe de la aportación / Cofinanciación de la organización]])","v":0},null,null,null,null,0]
[null,null,null,{"$f":"SUM(DespesesProjecte[[#This Row],[Importe imputable a la subvención municipal municipal]],DespesesProjecte[[#This Row],[Importe de la aportación / Cofinanciación de la organización]])","v":0},null,null,null,null,0]
["D8.  Ayudas al transporte para los/las participantes de los proyectos en caso de que sea necesario de manera justificada",{"$f":"SUM(B53:B55)","v":0},{"$f":"SUM(C53:C55)","v":0},{"$f":"SUM(DespesesProjecte[[#This Row],[Importe imputable a la subvención municipal municipal]],DespesesProjecte[[#This Row],[Importe de la aportación / Cofinanciación de la organización]])","v":0},null,null,{"$f":"SUM(G53:G55)","v":0},{"$f":"SUM(H53:H55)","v":0},0]
[null,null,null,{"$f":"SUM(DespesesProjecte[[#This Row],[Importe imputable a la subvención municipal municipal]],DespesesProjecte[[#This Row],[Importe de la aportación / Cofinanciación de la organización]])","v":0},null,null,null,null,0]
[null,null,null,{"$f":"SUM(DespesesProjecte[[#This Row],[Importe imputable a la subvención municipal municipal]],DespesesProjecte[[#This Row],[Importe de la aportación / Cofinanciación de la organización]])","v":0},null,null,null,null,{"$f":"+G54+H54","v":0}]
[null,null,null,{"$f":"SUM(DespesesProjecte[[#This Row],[Importe imputable a la subvención municipal municipal]],DespesesProjecte[[#This Row],[Importe de la aportación / Cofinanciación de la organización]])","v":0},null,null,null,null,0]
["D9.  Viajes y desplazamientos imputables a las actividades del proyecto",{"$f":"SUM(B57:B59)","v":0},{"$f":"SUM(C57:C59)","v":0},{"$f":"DespesesProjecte[[#This Row],[Importe imputable a la subvención municipal municipal]]+DespesesProjecte[[#This Row],[Importe de la aportación / Cofinanciación de la organización]]","v":0},null,null,{"$f":"SUM(G57:G59)","v":0},{"$f":"SUM(H57:H59)","v":0},0]
[null,null,null,{"$f":"SUM(DespesesProjecte[[#This Row],[Importe imputable a la subvención municipal municipal]],DespesesProjecte[[#This Row],[Importe de la aportación / Cofinanciación de la organización]])","v":0},null,null,null,null,0]
[null,null,null,{"$f":"SUM(DespesesProjecte[[#This Row],[Importe imputable a la subvención municipal municipal]],DespesesProjecte[[#This Row],[Importe de la aportación / Cofinanciación de la organización]])","v":0},null,null,null,null,0]
[null,null,null,{"$f":"SUM(DespesesProjecte[[#This Row],[Importe imputable a la subvención municipal municipal]],DespesesProjecte[[#This Row],[Importe de la aportación / Cofinanciación de la organización]])","v":0},null,null,null,null,0]
["D10.  Tributos, cuando sean abonados directamente por la persona jurídica o física beneficiaria",{"$f":"SUM(B61:B63)","v":0},{"$f":"SUM(C61:C63)","v":0},{"$f":"DespesesProjecte[[#This Row],[Importe imputable a la subvención municipal municipal]]+DespesesProjecte[[#This Row],[Importe de la aportación / Cofinanciación de la organización]]","v":0},null,null,{"$f":"SUM(G61:G63)","v":0},{"$f":"SUM(H61:H63)","v":0},0]
[null,null,null,{"$f":"SUM(DespesesProjecte[[#This Row],[Importe imputable a la subvención municipal municipal]],DespesesProjecte[[#This Row],[Importe de la aportación / Cofinanciación de la organización]])","v":0},null,null,null,null,0]
[null,null,null,{"$f":"SUM(DespesesProjecte[[#This Row],[Importe imputable a la subvención municipal municipal]],DespesesProjecte[[#This Row],[Importe de la aportación / Cofinanciación de la organización]])","v":0},null,null,null,null,0]
[null,null,null,{"$f":"SUM(DespesesProjecte[[#This Row],[Importe imputable a la subvención municipal municipal]],DespesesProjecte[[#This Row],[Importe de la aportación / Cofinanciación de la organización]])","v":0},null,null,null,null,0]
["D11. Otros gastos que de manera justificada y por la tipología del proyecto puedan imputarse directamente al proyecto",{"$f":"SUM(B65:B67)","v":0},{"$f":"SUM(C65:C67)","v":0},{"$f":"DespesesProjecte[[#This Row],[Importe imputable a la subvención municipal municipal]]+DespesesProjecte[[#This Row],[Importe de la aportación / Cofinanciación de la organización]]","v":0},null,null,{"$f":"SUM(G65:G67)","v":0},{"$f":"SUM(H65:H67)","v":0},0]
[null,null,null,{"$f":"SUM(DespesesProjecte[[#This Row],[Importe imputable a la subvención municipal municipal]],DespesesProjecte[[#This Row],[Importe de la aportación / Cofinanciación de la organización]])","v":0},null,null,null,null,0]
[null,null,null,{"$f":"SUM(DespesesProjecte[[#This Row],[Importe imputable a la subvención municipal municipal]],DespesesProjecte[[#This Row],[Importe de la aportación / Cofinanciación de la organización]])","v":0},null,null,null,null,0]
[null,null,null,{"$f":"SUM(DespesesProjecte[[#This Row],[Importe imputable a la subvención municipal municipal]],DespesesProjecte[[#This Row],[Importe de la aportación / Cofinanciación de la organización]])","v":0},null,null,null,null,0]
["TOTAL DE OTROS GASTOS DIRECTOS",{"$f":"B28+B32+B36+B40+B44+B48+B52+B56+B60+B64","v":0},{"$f":"C28+C32+C36+C40+C44+C48+C52+C56+C60+C64","v":0},{"$f":"D28+D32+D36+D40+D44+D48+D52+D56+D60+D64","v":0},null,null,{"$f":"G28+G32+G36+G40+G44+G48+G52+G56+G60+G64","v":0},{"$f":"H28+H32+H36+H40+H44+H48+H52+H56+H60+H64","v":0},{"$f":"I28+I32+I36+I40+I44+I48+I52+I56+I60+I64","v":0}]
["TOTAL GASTOS DIRECTOS  (aquellos que se identifican directamente con el proyecto subvencionable)",{"$f":"B27+B68","v":0},{"$f":"C27+C68","v":0},{"$f":"D27+D68","v":0},null,null,{"$f":"G27+G68","v":0},{"$f":"H27+H68","v":0},{"$f":"I27+I68","v":0}]
["I1. Personal de soporte al proyecto (nóminas y seguridad social)",{"$f":"SUM(B71:B73)","v":0},{"$f":"SUM(C71:C73)","v":0},{"$f":"SUM(DespesesProjecte[[#This Row],[Importe imputable a la subvención municipal municipal]],DespesesProjecte[[#This Row],[Importe de la aportación / Cofinanciación de la organización]])","v":0},null,null,{"$f":"SUM(G71:G73)","v":0},{"$f":"SUM(H71:H73)","v":0},{"$f":"+G70+H70","v":0}]
[null,null,null,{"$f":"SUM(DespesesProjecte[[#This Row],[Importe imputable a la subvención municipal municipal]],DespesesProjecte[[#This Row],[Importe de la aportación / Cofinanciación de la organización]])","v":0},null,null,null,null,{"$f":"+G71+H71","v":0}]
[null,null,null,{"$f":"SUM(DespesesProjecte[[#This Row],[Importe imputable a la subvención municipal municipal]],DespesesProjecte[[#This Row],[Importe de la aportación / Cofinanciación de la organización]])","v":0},null,null,null,null,0]
[null,null,null,{"$f":"SUM(DespesesProjecte[[#This Row],[Importe imputable a la subvención municipal municipal]],DespesesProjecte[[#This Row],[Importe de la aportación / Cofinanciación de la organización]])","v":0},null,null,null,null,0]
["I2.  Seguros",{"$f":"SUM(B75:B77)","v":0},{"$f":"SUM(C75:C77)","v":0},{"$f":"SUM(DespesesProjecte[[#This Row],[Importe imputable a la subvención municipal municipal]],DespesesProjecte[[#This Row],[Importe de la aportación / Cofinanciación de la organización]])","v":0},null,null,{"$f":"SUM(G75:G77)","v":0},{"$f":"SUM(H75:H77)","v":0},0]
[null,null,null,{"$f":"SUM(DespesesProjecte[[#This Row],[Importe imputable a la subvención municipal municipal]],DespesesProjecte[[#This Row],[Importe de la aportación / Cofinanciación de la organización]])","v":0},null,null,null,null,0]
[null,null,null,{"$f":"SUM(DespesesProjecte[[#This Row],[Importe imputable a la subvención municipal municipal]],DespesesProjecte[[#This Row],[Importe de la aportación / Cofinanciación de la organización]])","v":0},null,null,null,null,0]
[null,null,null,{"$f":"SUM(DespesesProjecte[[#This Row],[Importe imputable a la subvención municipal municipal]],DespesesProjecte[[#This Row],[Importe de la aportación / Cofinanciación de la organización]])","v":0},null,null,null,null,0]
["I3.  Amortización",{"$f":"SUM(B79:B81)","v":0},{"$f":"SUM(C79:C81)","v":0},{"$f":"SUM(DespesesProjecte[[#This Row],[Importe imputable a la subvención municipal municipal]],DespesesProjecte[[#This Row],[Importe de la aportación / Cofinanciación de la organización]])","v":0},null,null,{"$f":"SUM(G79:G81)","v":0},{"$f":"SUM(H79:H81)","v":0},0]
[null,null,null,{"$f":"SUM(DespesesProjecte[[#This Row],[Importe imputable a la subvención municipal municipal]],DespesesProjecte[[#This Row],[Importe de la aportación / Cofinanciación de la organización]])","v":0},null,null,null,null,0]
[null,null,null,{"$f":"SUM(DespesesProjecte[[#This Row],[Importe imputable a la subvención municipal municipal]],DespesesProjecte[[#This Row],[Importe de la aportación / Cofinanciación de la organización]])","v":0},null,null,null,null,0]
[null,null,null,{"$f":"SUM(DespesesProjecte[[#This Row],[Importe imputable a la subvención municipal municipal]],DespesesProjecte[[#This Row],[Importe de la aportación / Cofinanciación de la organización]])","v":0},null,null,null,null,0]
["I4.  Alquiler de bienes inmuebles",{"$f":"SUM(B83:B85)","v":0},{"$f":"SUM(C83:C85)","v":0},{"$f":"SUM(DespesesProjecte[[#This Row],[Importe imputable a la subvención municipal municipal]],DespesesProjecte[[#This Row],[Importe de la aportación / Cofinanciación de la organización]])","v":0},null,null,{"$f":"SUM(G83:G85)","v":0},{"$f":"SUM(H83:H85)","v":0},0]
[null,null,null,{"$f":"SUM(DespesesProjecte[[#This Row],[Importe imputable a la subvención municipal municipal]],DespesesProjecte[[#This Row],[Importe de la aportación / Cofinanciación de la organización]])","v":0},null,null,null,null,0]
[null,null,null,{"$f":"SUM(DespesesProjecte[[#This Row],[Importe imputable a la subvención municipal municipal]],DespesesProjecte[[#This Row],[Importe de la aportación / Cofinanciación de la organización]])","v":0},null,null,null,null,0]
[null,null,null,{"$f":"SUM(DespesesProjecte[[#This Row],[Importe imputable a la subvención municipal municipal]],DespesesProjecte[[#This Row],[Importe de la aportación / Cofinanciación de la organización]])","v":0},null,null,null,null,0]
["I5.  Adquisición de materiales y bienes consumibles parcialmente imputables al proyecto",{"$f":"SUM(B87:B89)","v":0},{"$f":"SUM(C87:C89)","v":0},{"$f":"SUM(DespesesProjecte[[#This Row],[Importe imputable a la subvención municipal municipal]],DespesesProjecte[[#This Row],[Importe de la aportación / Cofinanciación de la organización]])","v":0},null,null,{"$f":"SUM(G87:G89)","v":0},{"$f":"SUM(H87:H89)","v":0},0]
[null,null,null,{"$f":"SUM(DespesesProjecte[[#This Row],[Importe imputable a la subvención municipal municipal]],DespesesProjecte[[#This Row],[Importe de la aportación / Cofinanciación de la organización]])","v":0},null,null,null,null,0]
[null,null,null,{"$f":"SUM(DespesesProjecte[[#This Row],[Importe imputable a la subvención municipal municipal]],DespesesProjecte[[#This Row],[Importe de la aportación / Cofinanciación de la organización]])","v":0},null,null,null,null,0]
[null,null,null,{"$f":"SUM(DespesesProjecte[[#This Row],[Importe imputable a la subvención municipal municipal]],DespesesProjecte[[#This Row],[Importe de la aportación / Cofinanciación de la organización]])","v":0},null,null,null,null,0]
["I6.  Mantenimiento de edificios y/o instalaciones",{"$f":"SUM(B91:B93)","v":0},{"$f":"SUM(C91:C93)","v":0},{"$f":"SUM(DespesesProjecte[[#This Row],[Importe imputable a la subvención municipal municipal]],DespesesProjecte[[#This Row],[Importe de la aportación / Cofinanciación de la organización]])","v":0},null,null,{"$f":"SUM(G91:G93)","v":0},{"$f":"SUM(H91:H93)","v":0},0]
[null,null,null,{"$f":"SUM(DespesesProjecte[[#This Row],[Importe imputable a la subvención municipal municipal]],DespesesProjecte[[#This Row],[Importe de la aportación / Cofinanciación de la organización]])","v":0},null,null,null,null,0]
[null,null,null,{"$f":"SUM(DespesesProjecte[[#This Row],[Importe imputable a la subvención municipal municipal]],DespesesProjecte[[#This Row],[Importe de la aportación / Cofinanciación de la organización]])","v":0},null,null,null,null,0]
[null,null,null,{"$f":"SUM(DespesesProjecte[[#This Row],[Importe imputable a la subvención municipal municipal]],DespesesProjecte[[#This Row],[Importe de la aportación / Cofinanciación de la organización]])","v":0},null,null,null,null,0]
["I7.  Comunicaciones (teléfono, correos, conexión a internet)",{"$f":"SUM(B95:B97)","v":0},{"$f":"SUM(C95:C97)","v":0},{"$f":"SUM(DespesesProjecte[[#This Row],[Importe imputable a la subvención municipal municipal]],DespesesProjecte[[#This Row],[Importe de la aportación / Cofinanciación de la organización]])","v":0},null,null,{"$f":"SUM(G95:G97)","v":0},{"$f":"SUM(H95:H97)","v":0},0]
[null,null,null,{"$f":"SUM(DespesesProjecte[[#This Row],[Importe imputable a la subvención municipal municipal]],DespesesProjecte[[#This Row],[Importe de la aportación / Cofinanciación de la organización]])","v":0},null,null,null,null,0]
[null,null,null,{"$f":"SUM(DespesesProjecte[[#This Row],[Importe imputable a la subvención municipal municipal]],DespesesProjecte[[#This Row],[Importe de la aportación / Cofinanciación de la organización]])","v":0},null,null,null,null,0]
[null,null,null,{"$f":"SUM(DespesesProjecte[[#This Row],[Importe imputable a la subvención municipal municipal]],DespesesProjecte[[#This Row],[Importe de la aportación / Cofinanciación de la organización]])","v":0},null,null,null,null,0]
["I8.  Gastos financieros",{"$f":"SUM(B99:B101)","v":0},{"$f":"SUM(C99:C101)","v":0},{"$f":"SUM(DespesesProjecte[[#This Row],[Importe imputable a la subvención municipal municipal]],DespesesProjecte[[#This Row],[Importe de la aportación / Cofinanciación de la organización]])","v":0},null,null,{"$f":"SUM(G99:G101)","v":0},{"$f":"SUM(H99:H101)","v":0},0]
[null,null,null,{"$f":"SUM(DespesesProjecte[[#This Row],[Importe imputable a la subvención municipal municipal]],DespesesProjecte[[#This Row],[Importe de la aportación / Cofinanciación de la organización]])","v":0},null,null,null,null,0]
[null,null,null,{"$f":"SUM(DespesesProjecte[[#This Row],[Importe imputable a la subvención municipal municipal]],DespesesProjecte[[#This Row],[Importe de la aportación / Cofinanciación de la organización]])","v":0},null,null,null,null,0]
[null,null,null,{"$f":"SUM(DespesesProjecte[[#This Row],[Importe imputable a la subvención municipal municipal]],DespesesProjecte[[#This Row],[Importe de la aportación / Cofinanciación de la organización]])","v":0},null,null,null,null,0]
["I9.  Suministros ",{"$f":"SUM(B103:B105)","v":0},{"$f":"SUM(C103:C105)","v":0},{"$f":"SUM(DespesesProjecte[[#This Row],[Importe imputable a la subvención municipal municipal]],DespesesProjecte[[#This Row],[Importe de la aportación / Cofinanciación de la organización]])","v":0},null,null,{"$f":"SUM(G103:G105)","v":0},{"$f":"SUM(H103:H105)","v":0},0]
[null,null,null,{"$f":"SUM(DespesesProjecte[[#This Row],[Importe imputable a la subvención municipal municipal]],DespesesProjecte[[#This Row],[Importe de la aportación / Cofinanciación de la organización]])","v":0},null,null,null,null,0]
[null,null,null,{"$f":"SUM(DespesesProjecte[[#This Row],[Importe imputable a la subvención municipal municipal]],DespesesProjecte[[#This Row],[Importe de la aportación / Cofinanciación de la organización]])","v":0},null,null,null,null,0]
[null,null,null,{"$f":"SUM(DespesesProjecte[[#This Row],[Importe imputable a la subvención municipal municipal]],DespesesProjecte[[#This Row],[Importe de la aportación / Cofinanciación de la organización]])","v":0},null,null,null,null,0]
["I10.  Trabajo realizado por otras empresas, parcialmente imputables al proyecto (limpieza, seguridad...)",{"$f":"SUM(B107:B109)","v":0},{"$f":"SUM(C107:C109)","v":0},{"$f":"SUM(DespesesProjecte[[#This Row],[Importe imputable a la subvención municipal municipal]],DespesesProjecte[[#This Row],[Importe de la aportación / Cofinanciación de la organización]])","v":0},null,null,{"$f":"SUM(G107:G109)","v":0},{"$f":"SUM(H107:H109)","v":0},0]
[null,null,null,{"$f":"SUM(DespesesProjecte[[#This Row],[Importe imputable a la subvención municipal municipal]],DespesesProjecte[[#This Row],[Importe de la aportación / Cofinanciación de la organización]])","v":0},null,null,null,null,0]
[null,null,null,{"$f":"SUM(DespesesProjecte[[#This Row],[Importe imputable a la subvención municipal municipal]],DespesesProjecte[[#This Row],[Importe de la aportación / Cofinanciación de la organización]])","v":0},null,null,null,null,0]
[null,null,null,{"$f":"SUM(DespesesProjecte[[#This Row],[Importe imputable a la subvención municipal municipal]],DespesesProjecte[[#This Row],[Importe de la aportación / Cofinanciación de la organización]])","v":0},null,null,null,null,0]
["TOTAL GASTOS INDIRECTOS (se podrán asignar al proyecto subvencionable utilizando un porcentaje de asignación) - Máximo 10 % del importe imputable a la subvención municipal",{"$f":"SUM(B70,B74,B78,B82,B86,B90,B94,B98,B102,B106)","v":0},{"$f":"SUM(C70,C74,C78,C82,C86,C90,C94,C98,C102,C106)","v":0},{"$f":"SUM(D70,D74,D78,D82,D86,D90,D94,D98,D102,D106)","v":0},null,null,{"$f":"SUM(G70,G74,G78,G82,G86,G90,G94,G98,G102,G106)","v":0},{"$f":"SUM(H70,H74,H78,H82,H86,H90,H94,H98,H102,H106)","v":0},{"$f":"SUM(I70,I74,I78,I82,I86,I90,I94,I98,I102,I106)","v":0},{"$f":"+IF(G110>H13*0.1,\"ALERTA: Máximo 10% del importe imputable a la subvención municipal\", \" \")","v":" "}]
["TOTAL DE GASTOS PREVISTOS",{"$f":"B69+B110","v":0},{"$f":"C69+C110","v":0},{"$f":"D69+D110","v":0},null,null,{"$f":"G69+G110","v":0},{"$f":"H69+H110","v":0},{"$f":"I69+I110","v":0}]
[]
[]
[]
[]
[]
[]
[]
["Modalidad Bb: Creación, desarrollo y fortalecimiento de ecosistemas cooperativos y clústers de ESS"]
["Submodalidad Bb1: Diseño y preparación"]
["1. La cuantía de la subvención otorgada no superará el 80% del gasto total del proyecto a subvencionar."]
["2. El importe máximo de subvención para esta submodalidad del ámbito temático de Reactivación: Intercooperación (Bb1) es 15.000€. \n"]
["3. Las personas solicitantes deben elegir una u otra submodalidad (Bb1 o Bb2) en su solicitud de subvención: No es posible presentarse a las dos."]
["4. En el caso que la solicitud presentada sobrepase el importe máximo, se considerará como importe solicitado el máximo de lo establecido en la convocatoria."]
["5. En esta modalidad se aceptará la imputación de gastos de personal propio y directamente vinculado al proyecto de las organizaciones participantes del acuerdo de colaboración."]
["6. Se limita con un máximo del 40% el importe de la subvención para gastos de personal propio asignado al proyecto subvencionado (retribuciones y seguridad social- régimen general o autónomos-)."]
["7. Los gastos de alquiler de inmuebles se limitan a un máximo del 25% si se trata de un nuevo espacio físico necesario para el desarrollo del proyecto subvencionable. En el caso de alquileres de inmuebles no relacionados directamente con el desarrollo del proyecto, estos gastos de alquiler se imputarán a los gastos indirectos con el límite establecido por éstos."]
["8. En esta submodalidad también son subvencionables los trabajos de los grupos cooperativos y los acuerdos de colaboración de  las organizaciones agrupadas que diseñen proyectos para intentar obtener financiación de los fondos Next Generation de la Unión Europea (UE) o similares que puedan aparecer en el marco de los fondos públicos para la reactivación y transformación del modelo económico. "]
["9. La submodalidad “Bb1 Diseño y preparación” apoya los trabajos de preparación y diseño durante la presente convocatoria 2023 para proyectos que se quieran desarrollar durante las anualidades 2024 y 2025 Se trabajará, en el posible apoyo financiero de estos proyectos de intercooperación, en el marco de la Estrategia ESS 2030 BCN y el nuevo PIESS 2021-2023."]
["10. Los proyectos de esta submodalidad tendrán que entregar a su finalización un producto comunicativo, de acuerdo con el contenido establecido en la convocatoria de la subvención."]
["11. Son imputables en esta modalidad los gastos indirectos, detallados en el apartado 13.3. de las bases reguladoras; con un máximo del 10% del importe de la subvención.\nEl carácter subvencionable del gasto de amortización estará sujeto a las condiciones siguientes:\n> Que las subvenciones no hayan contribuido a la compra de los bienes.\n> Que la amortización se calcule de conformidad con las normas de contabilidad generalmente aceptadas.\n> Que el coste se refiera al periodo subvencionable.\n"]
["12. Cuando se deba hacer gastos de más de 12.000 €, sin IVA, en el caso de prestaciones de servicios o entrega de bienes y para aquellos gastos de más de 30.000 €,  sin IVA, en el caso de ejecución de obras, se deberán de incorporar tres presupuestos solicitados y argumentar el motivo de la adjudicación en el caso de no ser la propuesta más ventajosa económicamente."]
["13. No serán elegibles facturas de empresas emitidas entre las organizaciones participantes del acuerdo de colaboración."]
["14. En ningún caso se considerarán gastos subvencionables:\n> Los impuestos indirectos cuando sean susceptibles de recuperación o compensación.\n> Los gastos de inversión, incluidas las adquisiciones de bienes muebles.\n> Los gastos realizados con fecha anterior al inicio del proyecto y fecha posterior a la finalización del proyecto.\n> Otros gastos que se indiquen en la convocatoria."]
["15. La retribución de las personas contratadas en el marco del proyecto subvencionado no puede ser inferior al Salario Mínimo Interprofesional (SMI), ni a la estipulada al correspondiente convenio o marco normativo de referencia (punto 7 de las bases 2021: requisitos de los proyectos)."]
["16. Los materiales producidos de difusión, estudios, informes o materiales didácticos utilizados, etc. en el caso de tratarse de gasto elegible de la subvención, deberán tener licencia Creative Commons -Compartir Igual- (share a like) y no podrá tener la condición –Sin Obras Derivadas- (no derivate Works)."]
["17. Los proyectos subvencionados deben fomentar actividades de interés público o social, las cuales deben ser gratuitas para las personas participantes o en ningún caso el precio debe suponer un obstáculo para su participación, buscando otras formas de acceso para personas con dificultades económicas. En el caso que haya algún tipo de lucro, deberán revertir en las propias actividades subvencionadas."]
["18. El Ayuntamiento de Barcelona y sus entidades municipales en ningún caso subvencionarán el mismo proyecto, ejecutado durante el mismo periodo, por ningún otro procedimiento de concesión que no sea el regulado por las bases reguladoras."]
["19. El/la beneficiario/a no podrá alterar en ningún caso el destino de las subvenciones concedidas."]
["20.  La organización designada como representante de la agrupación será plenamente responsable del proyecto ante el Ayuntamiento respecto al cumplimiento de las obligaciones establecidas en las bases reguladoras, sin perjuicio de la responsabilidad de las otras organizaciones socias de la agrupación, siendo de aplicación los requisitos previstos en el punto 6.1 de las bases reguladoras."]
["21. En ningún caso podrán formar parte de la agrupación las organizaciones que hayan recibido otras subvenciones para la ejecución del mismo proyecto de otras administraciones públicas."]

{"sheet":"Resumen Presupuesto","index":2,"n_rows":40,"n_cols":11,"rows_kept":40,"cut":false,"hidden":false,"merged":[[20,1,21,1],[1,2,1,7],[5,0,5,1],[3,0,3,8],[6,2,7,2],[6,0,7,1],[6,8,7,8],[6,6,7,7],[6,4,7,4],[6,3,7,3],[26,6,26,7],[32,7,32,9],[6,9,7,9],[20,2,21,2],[20,3,21,3],[20,4,21,4]]}
[]
[null,null,"Resumen presupuesto Modalidad Bb1"]
[]
["Programa de subvenciones del Ayuntamiento de Barcelona para la  reactivación y el fortalecimiento de la Economía Social y Solidaria y el desarrollo de proyectos de intercooperación que desarrollen la Estrategia #ESSBCN2030",null,null,null,null,null,null,null,null,"MODALIDAD Bb1"]
[]
["GASTOS PREVISTOS",null,null,null,null,null,"INGRESOS PREVISTOS"]
["Gastos directos \n(aquellos que se identifican directamente con el proyecto)",null,"Previsión inicial coste total","Previsión reformulada coste total","Importe imputado a la subvención otorgada",null,"Ingresos previstos",null,"Previsión inicial ingreso total","Previsión reformulada ingreso total"]
[]
["Bb1","D1. Retribuciones y seguridad social (régimen general o régimen de autónomos) del personal propio vinculado/a al proyecto (máximo 40% subvención)",{"$f":"+'Reformulación Presupuesto Bb1'!D22","v":0},{"$f":"+'Reformulación Presupuesto Bb1'!I22","v":0},{"$f":"+'Reformulación Presupuesto Bb1'!G22","v":0},{"$f":"+IF(D9<0,\"No s'admeten valors negatius\",\"\")","v":""},"A.","Subvención municipal (importe solicitado en la instancia/otorgado)"]
[null,"D2.  Trabajos realizados por profesionales y empresas externas directamente vinculadas al proyecto subvencionado",{"$f":"+'Reformulación Presupuesto Bb1'!D28","v":0},{"$f":"+'Reformulación Presupuesto Bb1'!I28","v":0},{"$f":"+'Reformulación Presupuesto Bb1'!G28","v":0},null,"B.","Subvenciones de otras administraciones",null,null,{"$f":"+IF(J10<0,\"No s'admeten valors negatius\",\"\")","v":""}]
[null,"D3.  Alquiler de bienes muebles/ inmuebles directamente vinculados al proyecto subvencionable (máximo 25% subvención en caso de immuebles para un nuevo espacio)",{"$f":"+'Reformulación Presupuesto Bb1'!D32","v":0},{"$f":"+'Reformulación Presupuesto Bb1'!I32","v":0},{"$f":"+'Reformulación Presupuesto Bb1'!G32","v":0},{"$f":"+IF(D10<0,\"No s'admeten valors negatius\",\"\")","v":""},"C.","Subvenciones de entes privados",null,null,""]
[null,"D4.  Adquisición de materiales y bienes consumibles íntegramente imputables al proyecto ",{"$f":"+'Reformulación Presupuesto Bb1'!D36","v":0},{"$f":"+'Reformulación Presupuesto Bb1'!I36","v":0},{"$f":"+'Reformulación Presupuesto Bb1'!G36","v":0},{"$f":"+IF(D11<0,\"No s'admeten valors negatius\",\"\")","v":""},"D.","Recursos propios de la organización aplicados al proyecto"]
[null,"D5.  Transporte – mensajería imputables al proyecto ",{"$f":"+'Reformulación Presupuesto Bb1'!D40","v":0},{"$f":"+'Reformulación Presupuesto Bb1'!I40","v":0},{"$f":"+'Reformulación Presupuesto Bb1'!F40","v":0},null,"E.","Taquillaje"]
[null,"D6. Publicidad y propaganda de las actividades directamente vinculadas al proyecto ",{"$f":"+'Reformulación Presupuesto Bb1'!D44","v":0},{"$f":"+'Reformulación Presupuesto Bb1'!I44","v":0},{"$f":"+'Reformulación Presupuesto Bb1'!G44","v":0},null,"F.","Cuotas de inscripción"]
[null,"D7.  Alojamiento y dietas, del personal contratante y voluntario, vinculados al proyecto",{"$f":"+'Reformulación Presupuesto Bb1'!D48","v":0},{"$f":"+'Reformulación Presupuesto Bb1'!I48","v":0},{"$f":"+'Reformulación Presupuesto Bb1'!G48","v":0},null,"G.","Venta de Productos"]
[null,"D8.  Ayudas para el transporte para los/las participantes de los proyectos en caso de que sea necesario de manera justificada",{"$f":"+'Reformulación Presupuesto Bb1'!D52","v":0},{"$f":"+'Reformulación Presupuesto Bb1'!I52","v":0},{"$f":"+'Reformulación Presupuesto Bb1'!G52","v":0},null,"H","Publicidad y/o Esponsorización"]
[null," D9. Viajes y desplazamientos imputables a las actividades del proyecto",{"$f":"+'Reformulación Presupuesto Bb1'!D56","v":0},{"$f":"+'Reformulación Presupuesto Bb1'!I56","v":0},{"$f":"+'Reformulación Presupuesto Bb1'!G56","v":0},null,"I.","Otros ingresos"]
[null,"D10. Tributos, cuando sean abonados directamente por la persona jurídica o física beneficiaria",{"$f":"+'Reformulación Presupuesto Bb1'!D60","v":0},{"$f":"+'Reformulación Presupuesto Bb1'!I60","v":0},{"$f":"+'Reformulación Presupuesto Bb1'!G60","v":0},null,null,"Total Ingresos",{"$f":"SUM(I9:I17)","v":0},{"$f":"SUM(J9:J17)","v":0}]
[null,"D11.  Otros gastos que de manera justificada puedan imputarse directamente al proyecto subvencionable",{"$f":"+'Reformulación Presupuesto Bb1'!D64","v":0},{"$f":"+'Reformulación Presupuesto Bb1'!I64","v":0},{"$f":"+'Reformulación Presupuesto Bb1'!G64","v":0}]
[null,"Total Gastos Directos   ",{"$f":"SUM(C9:C19)","v":0},{"$f":"SUM(D9:D19)","v":0},{"$f":"SUM(E9:E19)","v":0}]
[null,"Gastos indirectos (se podran asignar al proyecto utilizando un porcentaje de asignación) ","Previsió inicial cost total","Previsió reformulada cost total","Import imputat a la subvenció atorgada"]
[]
[null,"I.1 Personal de soporte al proyecto subvencionado (Nóminas y seguridad social)",{"$f":"+'Reformulación Presupuesto Bb1'!D70","v":0},{"$f":"+'Reformulación Presupuesto Bb1'!I70","v":0},{"$f":"+'Reformulación Presupuesto Bb1'!G70","v":0}]
[null,"I.2  Seguros",{"$f":"+'Reformulación Presupuesto Bb1'!D74","v":0},{"$f":"+'Reformulación Presupuesto Bb1'!I74","v":0},{"$f":"+'Reformulación Presupuesto Bb1'!G74","v":0}]
[null,"I.3  Amortización",{"$f":"+'Reformulación Presupuesto Bb1'!D78","v":0},{"$f":"+'Reformulación Presupuesto Bb1'!I78","v":0},{"$f":"+'Reformulación Presupuesto Bb1'!G78","v":0}]
[null,"I.4  Alquiler de biens inmuebles",{"$f":"+'Reformulación Presupuesto Bb1'!D82","v":0},{"$f":"+'Reformulación Presupuesto Bb1'!I82","v":0},{"$f":"+'Reformulación Presupuesto Bb1'!G82","v":0},{"$f":"+IF(D25<0,\"No s'admeten valors negatius\",\"\")","v":""}]
[null,"I.5  Adquisición de materiales y bienes consumibles parcialmente imputables al proyecto",{"$f":"+'Reformulación Presupuesto Bb1'!D86","v":0},{"$f":"+'Reformulación Presupuesto Bb1'!I86","v":0},{"$f":"+'Reformulación Presupuesto Bb1'!G86","v":0},null,"Ingresos menos gastos ",null,{"$f":"+I18-C34","v":0},{"$f":"+J18-D34","v":0}]
[null,"I.6  Mantenimiento de edificios y/o instalaciones",{"$f":"+'Reformulación Presupuesto Bb1'!D90","v":0},{"$f":"+'Reformulación Presupuesto Bb1'!I90","v":0},{"$f":"+'Reformulación Presupuesto Bb1'!G90","v":0}]
[null,"I.7  Comunicaciones (teléfono, correos, connexión a internet)",{"$f":"+'Reformulación Presupuesto Bb1'!D94","v":0},{"$f":"+'Reformulación Presupuesto Bb1'!I94","v":0},{"$f":"+'Reformulación Presupuesto Bb1'!G94","v":0}]
[null,"I.8  Gastos financieros",{"$f":"+'Reformulación Presupuesto Bb1'!D98","v":0},{"$f":"+'Reformulación Presupuesto Bb1'!I98","v":0},{"$f":"+'Reformulación Presupuesto Bb1'!G98","v":0},null,null,null,"% subvencionado inicialmente",{"$f":"I9/C34","v":{"$error":"#DIV/0!"}}]
[null,"I.9  Suministros ",{"$f":"+'Reformulación Presupuesto Bb1'!D102","v":0},{"$f":"+'Reformulación Presupuesto Bb1'!I102","v":0},{"$f":"+'Reformulación Presupuesto Bb1'!G102","v":0}]
[null,"I.10  Trabajo realizado por otras empresas, parcialmente imputables al proyecto subvencionable (limpieza, seguridad...)",{"$f":"+'Reformulación Presupuesto Bb1'!D106","v":0},{"$f":"+'Reformulación Presupuesto Bb1'!I106","v":0},{"$f":"+'Reformulación Presupuesto Bb1'!G106","v":0},null,null,null,"% subvencionado después de reformular",{"$f":"+J9/D34","v":{"$error":"#DIV/0!"}},"*"]
[null,"Total Gastos Indirectos   (Màx. 10% subv)",{"$f":"SUM(C23:C32)","v":0},{"$f":"SUM(D23:D32)","v":0},{"$f":"SUM(E23:E32)","v":0},null,null,"*Este porcentaje debe ser igual o menor al porcentaje subvencionado inicialmente"]
[null,"Total Gastos",{"$f":"+C20+C33","v":0},{"$f":"+D20+D33","v":0},{"$f":"+E20+E33","v":0}]
[]
[]
[]
[]
[]
[null,null,0]